Cogmind - Beta 16 @@@ ROGUE MODE // 2026.01.16 @ 01:36:23 Player: phosphophyllite Result: Destroyed by D-53 Grenadier with Mini Grenade Launcher Performance ------------- Evolutions (0) 0 Regions Visited (4) 800 Robots Destroyed (9) 45 Value Destroyed (216) 216 Prototype IDs (0) 0 Alien Tech Used (0) 0 Bonus (0) 0 TOTAL SCORE: 1061 Bonus ------- None Cogmind --------- Core Integrity 0/250 Matter 270/400 Energy 100/100 System Corruption 0% Temperature Cool (0) Movement Walking (120) Location -9/Mines Parts ------- > --- POWER (1) -------- (None) > --- PROPULSION (2) --- Aluminum Leg Aluminum Leg > --- UTILITY (2) ------ Small Storage Unit Medium Matter Pod > --- WEAPON (2) ------- Assault Rifle Rocket Launcher > --- INVENTORY (8) ---- Ion Engine Aluminum Leg Aluminum Leg Light Assault Rifle Grenade Launcher Grenade Launcher Katana Peak State ------------ > --- POWER ------------ Light Nuclear Core > --- PROPULSION ------- Aluminum Leg Aluminum Leg > --- UTILITY ---------- Small Storage Unit Medium Matter Pod > --- WEAPON ----------- Assault Rifle Assault Rifle > --- INVENTORY -------- Ion Engine Aluminum Leg Light Assault Rifle Grenade Launcher Grenade Launcher Rocket Launcher Katana [Rating: 10] Favorites ----------- Power Light Nuclear Core Engine Ion Engine Power Core Light Nuclear Core Propulsion Aluminum Leg Leg Aluminum Leg Utility Small Storage Unit Storage Small Storage Unit Weapon Assault Rifle Ballistic Gun Assault Rifle Build | -11 -10 -10 -10 -9 ------- Run | Yrd Mat Min Exi Min Slots Evolved . | . . . . . Power . | . . . . . Propulsion . | . . . . . Utility . | . . . . . Weapon . | . . . . . Parts Attached 14 | 7 2 1 . 4 Power 3 | 2 . 1 . . Engine 2 | 2 . . . . Core 1 | . . 1 . . Reactor . | . . . . . Propulsion 4 | 2 . . . 2 Treads . | . . . . . Leg 4 | 2 . . . 2 Wheel . | . . . . . Hover . | . . . . . Flight . | . . . . . Utility 2 | 1 1 . . . Device . | . . . . . Storage 2 | 1 1 . . . Processor . | . . . . . Hackware . | . . . . . Protection . | . . . . . Artifact . | . . . . . Weapon 5 | 2 1 . . 2 Energy Gun . | . . . . . Energy Cannon . | . . . . . Ballistic Gun 4 | 2 1 . . 1 Ballistic Cannon . | . . . . . Launcher 1 | . . . . 1 Special Weapon . | . . . . . Impact Weapon . | . . . . . Slashing Weapon . | . . . . . Piercing Weapon . | . . . . . Special Melee Weapon . | . . . . . Unidentified Prototypes . | . . . . . Parts Lost 4 | . . . . 4 Power 1 | . . . . 1 Propulsion 1 | . . . . 1 Utility . | . . . . . Weapon 2 | . . . . 2 Highest Loss Streak 2 | . . . . 2 To Critical Strikes . | . . . . . Average Backups 7 | 2 7 7 8 7 Power . | . 1 1 1 1 Propulsion 1 | . 2 1 2 1 Utility . | . . . . . Weapon 4 | . 4 4 5 4 Tool/Special . | . . . . . Unused Backups 9 | . 1 3 . 5 Power 1 | . . . . 1 Propulsion 3 | . . 2 . 1 Utility 1 | . . 1 . . Weapon 4 | . 1 . . 3 Tool/Special . | . . . . . Average Slot Usage (%) 95 | . 85 100 100 97 Engine 5 | . 14 3 . . Core 8 | . . 10 14 14 Leg 27 | . 28 28 28 26 Storage 24 | . 14 28 28 28 Ballistic Gun 27 | . 28 28 28 26 Peak Build Rating 10 | 6 7 9 9 10 Average Rating 7 | 4 6 8 9 9 On Entrance 6 | . 6 7 9 9 Avg Prop Armor Cover (%) . | . . . . . Naked Turns . | . . . . . Heaviest Build 16 | 13 16 16 16 16 Greatest Support 20 | 20 20 20 20 20 Greatest Overweight (x) . | . . . . . Average Overweight (x) . | . . . . . Largest Inventory Capacity 8 | 8 8 8 8 8 Average Capacity 7 | 6 8 8 8 8 Most Carried 8 | 5 8 8 8 8 Average Carried 7 | 2 7 7 8 7 Final Capacity 8 | 8 8 8 8 8 Final Carried 8 | 4 8 8 8 7 Class Distribution -------------------- 100% | Mutant Dominant Class ---------------- Mutant | -10/Materials Mutant | -10/Mines Mutant | -10/Exiles Mutant | -9/Mines Resources | -11 -10 -10 -10 -9 ----------- Run | Yrd Mat Min Exi Min Matter Collected 573 | 178 30 267 . 98 Remotely . | . . . . . Salvage Created 383 | 19 30 236 . 98 Parts 19 | 1 2 9 . 7 Haulers Intercepted . | . . . . . Recyclers Shooed 2 | . . 2 . . Parts Field Recycled . | . . . . . Retrieved Matter . | . . . . . Parts Self-Destructed . | . . . . . Prevented . | . . . . . Parts Restored . | . . . . . Kills | -11 -10 -10 -10 -9 ------- Run | Yrd Mat Min Exi Min Combat Hostiles Destroyed 5 | . 1 2 . 2 Guns 5 | . 1 2 . 2 Classes Destroyed 5 | 1 1 1 . 2 Worker 1 | . . . . 1 Tunneler 1 | 1 . . . . Recycler 2 | . . 2 . . Grunt 4 | . 1 2 . 1 Duelist 1 | . . . . 1 Best Kill Streak 2 | 1 1 2 . 1 Combat Bots Only 1 | . 1 1 . 1 Max Kills in Single Turn 1 | 1 1 1 . 1 Gunslinging . | . . . . . Exploded . | . . . . . Melee . | . . . . . Uniques/NPCs Destroyed . | . . . . . Combat | -11 -10 -10 -10 -9 -------- Run | Yrd Mat Min Exi Min Hostile Shots Fired 41 | . 5 23 . 13 Missed 7 | . . 7 . . Hits 34 | . 5 16 . 13 Melee 9 | . . . . 9 Projectile 25 | . 5 16 . 4 AOE 4 | . . . . 4 Critical Strikes 1 | . . . . 1 Damage Taken 722 | . 53 240 . 429 Core 256 | . 22 46 . 188 Absorbed by Shields . | . . . . . Core Remaining (%) 100 | 100 . . . . Volleys Fired 48 | 1 16 20 1 10 Largest 2 | 2 2 2 2 2 Hottest 40 | 40 40 40 40 40 Shots Fired 95 | 2 32 40 2 19 Gun 95 | 2 32 40 2 19 Cannon . | . . . . . Launcher . | . . . . . Special . | . . . . . Kinetic 95 | 2 32 40 2 19 Thermal . | . . . . . Explosive . | . . . . . Electromagnetic . | . . . . . Robot Hit Streak 8 | 1 4 8 . 8 Robot Miss Streak 4 | 1 2 4 . 2 Penetration Max . | . . . . . Secondary Targets 2 | . . 1 . 1 Max Gunslinging Chain 1 | . . 1 . 1 Shots Hit Robots 59 | 1 18 26 . 14 Core Hits 18 | 1 3 9 . 5 Critical Kills 1 | . . 1 . . Critical Parts Destroyed 1 | . . 1 . . Critical Strikes 2 | . . 2 . . Destroy 2 | . . 2 . . Melee Attacks . | . . . . . Impact . | . . . . . Slashing . | . . . . . Piercing . | . . . . . Sneak Attacks . | . . . . . Combat Hostiles . | . . . . . Follow-up Attacks . | . . . . . Damage Inflicted 732 | 10 206 339 . 177 Guns 732 | 10 206 339 . 177 Cannons . | . . . . . Explosions . | . . . . . Melee . | . . . . . Ramming . | . . . . . Kinetic 732 | 10 206 339 . 177 Thermal . | . . . . . Explosive . | . . . . . Electromagnetic . | . . . . . Impact . | . . . . . Slashing . | . . . . . Piercing . | . . . . . Highest Corruption . | . . . . . Average Corruption . | . . . . . Corruption Purged . | . . . . . Corruption Blocked . | . . . . . Overload Shots . | . . . . . Overflow Damage . | . . . . . Projectiles . | . . . . . Explosions . | . . . . . Melee . | . . . . . Knockbacks . | . . . . . Impact . | . . . . . Kinetic . | . . . . . Secondary . | . . . . . Self-Inflicted Damage . | . . . . . Shots . | . . . . . Rammed . | . . . . . Targets Rammed . | . . . . . Kicked . | . . . . . Crushed . | . . . . . Highest Temperature 9 | . . 9 . . Average Temperature 2 | . . 2 . . Received Heat Transfer 165 | . 30 135 . . Siege Activations . | . . . . . Martial Activations . | . . . . . Shielding Activations . | . . . . . Robots Disrupted . | . . . . . Combat Hostiles . | . . . . . Robots Corrupted . | . . . . . Combat Hostiles . | . . . . . Parts Fried . | . . . . . Impact Corruptions . | . . . . . Robots Melted . | . . . . . Combat Hostiles . | . . . . . Parts Melted . | . . . . . Heat Transferred . | . . . . . Parts Sabotaged . | . . . . . Parts Stolen . | . . . . . Parts Stripped . | . . . . . Power Chain Reactions . | . . . . . Alert | -11 -10 -10 -10 -9 ------- Run | Yrd Mat Min Exi Min Maximum Alert Level . | . . . . . Low Security (%) 100 | 100 100 100 . 100 Level 1 . | . . . . . Level 2 . | . . . . . Level 3 . | . . . . . Level 4 . | . . . . . Level 5 . | . . . . . High Security . | . . . . . Max Security . | . . . . . Peak Influence 35 | 5 20 35 . 30 Initial . | . . . . . Average 3 | . 1 3 . 11 Influence Increases 140 | 5 20 60 . 55 Destroy 0b10 Robot/C 100 | . 20 40 . 40 Destroy 0b10 Robot/NC 20 | 5 . 10 . 5 Destroy Leader 20 | . . 10 . 10 Influence Decreases 140 | 5 20 60 . 55 Time Decay 120 | 5 20 60 . 35 Lost Part 20 | . . . . 20 Squads Dispatched . | . . . . . Investigation . | . . . . . Extermination . | . . . . . Reinforcement . | . . . . . Assault . | . . . . . Garrison . | . . . . . Intercept . | . . . . . Searches Triggered . | . . . . . Construction Impeded . | . . . . . Haulers Reinforced . | . . . . . Active Scanning Responses . | . . . . . Cargo Convoy Interrupts . | . . . . . Stealth | -11 -10 -10 -10 -9 --------- Run | Yrd Mat Min Exi Min Distress Signals 2 | . 1 . . 1 Communications Jammed . | . . . . . Distress Signals . | . . . . . Times Spotted 11 | . 5 2 . 4 Peak Tracking Total 3 | . 3 2 . 2 Tactical Retreats . | . . . . . Traps | -11 -10 -10 -10 -9 ------- Run | Yrd Mat Min Exi Min Traps Triggered . | . . . . . Indirectly . | . . . . . Trap Hack Attempts . | . . . . . Triggered . | . . . . . Disarmed . | . . . . . Reprogrammed . | . . . . . Reused . | . . . . . Traps Extracted . | . . . . . Installed . | . . . . . Triggered . | . . . . . Machines | -11 -10 -10 -10 -9 ---------- Run | Yrd Mat Min Exi Min Machines Disabled . | . . . . . Max in Single Turn . | . . . . . Machines Repaired . | . . . . . Machines Dismantled . | . . . . . Machines Sabotaged . | . . . . . Overloaded Fab Kills . | . . . . . Hacking | -11 -10 -10 -10 -9 --------- Run | Yrd Mat Min Exi Min Machines Accessed 1 | . . . 1 . Terminals . | . . . . . Fabricators . | . . . . . Repair Stations . | . . . . . Recycling Units . | . . . . . Scanalyzers . | . . . . . Garrison Access . | . . . . . Total Hacks 23 | . . . 23 . Successful 23 | . . . 23 . Failed . | . . . . . Catastrophic . | . . . . . Database Lockouts . | . . . . . Manual . | . . . . . Terminals . | . . . . . Fabricators . | . . . . . Repair Stations . | . . . . . Recycling Units . | . . . . . Scanalyzers . | . . . . . Garrison Access . | . . . . . Terminal Hacks 23 | . . . 23 . Record 23 | . . . 23 . Fabricator Hacks . | . . . . . Repair Station Hacks . | . . . . . Recycling Unit Hacks . | . . . . . Scanalyzer . | . . . . . Garrison Access Hacks . | . . . . . Unauthorized Hacks . | . . . . . Terminals . | . . . . . Fabricators . | . . . . . Repair Stations . | . . . . . Recycling Units . | . . . . . Scanalyzers . | . . . . . Garrison Access . | . . . . . Data Cores Recovered . | . . . . . Used . | . . . . . Hacking Detections . | . . . . . Full Trace Events . | . . . . . Feedback Events . | . . . . . Feedback Blocked . | . . . . . Robot Schematics Acquired . | . . . . . Robots Built . | . . . . . Authchips . | . . . . . Time . | . . . . . Total Robot Build Rating . | . . . . . Part Schematics Acquired . | . . . . . Parts Built . | . . . . . Authchips . | . . . . . Time . | . . . . . Total Part Build Rating . | . . . . . Part Studies Acquired . | . . . . . Parts Repaired . | . . . . . Time . | . . . . . Parts Recycled . | . . . . . Recycled Matter . | . . . . . Retrieved Matter . | . . . . . Retrieved Components . | . . . . . Parts Scanalyzed . | . . . . . Part Schematics Acquired . | . . . . . Parts Damaged . | . . . . . Bothacking | -11 -10 -10 -10 -9 ------------ Run | Yrd Mat Min Exi Min Used RIF Installer . | . . . . . Robots Hacked . | . . . . . Non-combat . | . . . . . Combat . | . . . . . Robot Hacks Applied . | . . . . . Relay Couplers Released . | . . . . . Fabnet Peak Effective % . | . . . . . Robots Rewired . | . . . . . Allies Hacked . | . . . . . Hacks Repelled . | . . . . . Allies | -11 -10 -10 -10 -9 -------- Run | Yrd Mat Min Exi Min Total Allies 2 | . . 2 . . Largest Group 2 | . . 2 2 . Highest-Rated Group 38 | . . 38 38 . Highest-Rated Ally 31 | . . 31 31 . Total Orders . | . . . . . Ally Attacks . | . . . . . Total Damage . | . . . . . Kills . | . . . . . Allies Corrupted . | . . . . . Allies Melted . | . . . . . Intel | -11 -10 -10 -10 -9 ------- Run | Yrd Mat Min Exi Min Active Infowar (turns) . | . . . . . Robot Analysis Total . | . . . . . Derelict Logs Recovered . | . . . . . Drone Launches . | . . . . . Drone Recoveries . | . . . . . Exploration | -11 -10 -10 -10 -9 ------------- Run | Yrd Mat Min Exi Min Turns Passed 1173 | 68 310 433 241 121 Spaces Moved 680 | 49 126 241 193 71 Core 11 | 11 . . . . Treads . | . . . . . Legs 669 | 38 126 241 193 71 Wheels . | . . . . . Hover . | . . . . . Flight . | . . . . . Fastest Speed 50 | 50 120 120 120 120 Average Speed 118 | 104 120 120 120 120 Slowest Speed 120 | 120 120 120 120 120 Overloaded Moves . | . . . . . Propulsion Burnouts . | . . . . . Robots Hopped . | . . . . . Potential Cave-ins . | . . . . . Cave-ins Triggered . | . . . . . Exploration Rate (%) 30 | 3 30 46 50 22 Regions Visited 4 Branch Regions 3 Pre-discovered Areas 1 | . . . 1 . Known Exits Taken . | . . . . . Unknown Exits Taken 4 | 1 1 1 1 . Scrap Searched 1 | . . 1 . . Spaces Dug . | . . . . . Terrain Destroyed . | . . . . . Melee . | . . . . . Projectile . | . . . . . AOE . | . . . . . Terrain Rammed . | . . . . . Walls Destroyed . | . . . . . Machines Disabled . | . . . . . Actions | -11 -10 -10 -10 -9 --------- Run | Yrd Mat Min Exi Min Total 950 | 61 254 347 200 88 Wait 181 | . 103 78 . . Move 676 | 48 125 240 192 71 Hop . | . . . . . Pick Up 18 | 5 6 4 . 3 Fast Attach 6 | 5 1 . . . Attach 5 | 1 . . . 4 Detach . | . . . . . Swap 3 | 1 1 1 . . Drop 6 | . 2 4 . . Fire 48 | 1 16 20 1 10 Melee . | . . . . . Ram . | . . . . . Kick . | . . . . . Crush . | . . . . . Escape Stasis . | . . . . . Rewire 7 | . . . 7 . Trap . | . . . . . Miscellaneous . | . . . . . Route ------- -11/Scrapyard -10/Materials -10/Mines -10/Exiles (discovered 2 exits: [*Min x2]) -9/Mines (discovered 1 exit: [*Mat]) History --------- Turn | Location | Event 8 | -11/Scrapyard | Discovered new exit (range 15) 69 | -11/Scrapyard | Entered Materials 304 | -10/Materials | Build established: Mutant 362 | -10/Materials | Discovered new exit (range 7) 379 | -10/Materials | Entered Mines 410 | -10/Mines | Received a Rocket Launcher from a helpful Derelict 795 | -10/Mines | Deemed a non-threat by the Exiles lab entrance 795 | -10/Mines | Discovered new exit (range 5) 812 | -10/Mines | Entered Exiles 812 | -10/Exiles | Accompanied by 2 allies 842 | -10/Exiles | Led the pair of lost Derelicts to a safe place 850 | -10/Exiles | Discovered new exit (range 15) 866 | -10/Exiles | Met 8R-AWN 893 | -10/Exiles | Met EX-HEX 981 | -10/Exiles | Met EX-DEC 986 | -10/Exiles | Learned location of Zion (-7) 1043 | -10/Exiles | Discovered new exit (range 10) 1053 | -10/Exiles | Entered Mines 1063 | -9/Mines | Core integrity fell below 50% 1076 | -9/Mines | Core integrity fell below 20% 1166 | -9/Mines | Assembled infested the area 1172 | -9/Mines | Discovered new exit (range 5) 1174 | -9/Mines | Destroyed by D-53 Grenadier with Mini Grenade Launcher Last Messages --------------- 01060_ Aluminum Leg destroyed. 01065_ Aluminum Leg severed. 01067_ Assault Rifle destroyed. 01076_ L-31 Rogue destroyed. 01079_ Acquired 42 matter. 01082_ Acquired Katana. 01084_ Acquired 34 matter. 01086_ Acquired Aluminum Leg. 01162_ K-01 Serf destroyed. 01165_ Acquired 22 matter. 01166_ ALERT: Infestation in the mines, dispatching Demolisher response squad. 01168_ T-07 Excavator sends out distress signal. 01172_ EXIT=FOUND 01173_ C-45 Heavy ARC bursts open, deploying its payload. 01173_ D-53 Grenadier unfolds itself. 01173_ Assault Rifle destroyed. 01174_ The unstable cave ceiling collapses. 01174_ Lgt. Nuclear Core destroyed. Map ----- +----------------------------------------------------+ | | | | | | | | | | | | | | | | | | | | | | | | | | | | | | | | | ?????????????????????????????????????????????????? | | ?????????????????????????????????????????????????? | | ?????????????????????????????####????????????????? | | ???????????????????????###### ##???????????????? | | ??????????????????????## #???????????????? | | ?????#####???????????## < #???????????????? | | ????## ##??????????# d ####?????????????? | | ????# ######????## d% ??????????????? | | ????# ###### #?????????????????? | | ????## t @ #???????????????????? | | ????## ##### #???????????????????? | | ????# ##???## #???????????????????? | | ???## #????## #???????????????????? | | ??## ##???# = =###???????????????????? | | ?## ### ##??# ######?????????????????????? | | ## #### #### ####???????????????????????? | | ### #???????????????????????? | | ## ##### #???????????????????????? | | ?## ##??? #???????????????????????? | | ##??? #???????????????????????? | | #???? ???????????????????????? | | ########### #?????#??????????????????????? | | ??????????##### ##????????????????????????????? | | ??????????????## ##?????????????????????????????? | | ??????????????## #??????????????????????????????? | | ??????????????# #??????????????????????????????? | | ??????????????#####??????????????????????????????? | | ?????????????????????????????????????????????????? | | ?????????????????????????????????????????????????? | | ?????????????????????????????????????????????????? | | ?????????????????????????????????????????????????? | | ?????????????????????????????????????????????????? | | ?????????????????????????????????????????????????? | | ?????????????????????????????????????????????????? | +----------------------------------------------------+ Best States ------------- Heat Dissipation 25 Energy Generation 14 Energy Capacity 250 Matter Stores 273 Matter Capacity 400 Sight Range 16 Terrain Scan Density 10 Evasion (%) 55 Item Schematics ----------------- None Robot Schematics ------------------ None Fabricated ------------ Nothing Repaired ---------- Nothing Studied --------- None Alien Tech Used ----------------- None Achievements -------------- Librarian Challenges ------------ None Game ------ Seed CoilLinkedRedistributor Manual? 0 Play Time 00:17:55 Cumulative 8.8 hours Start 2026.01.16 @ 01:15:24 End 2026.01.16 @ 01:36:23 Sessions 1 Manual Loads 0 Difficulty Rogue Special Mode None Game No. 12 Rogue 12 Adventurer 0 Explorer 0 Win Type - Total 0 Types 0/0/0/0/0/0/0/0/0/0 Lore% 4 Gallery% 10 Achievement% 10 Wizard Run 0 Options --------- Layout 1 ASCII 0 Keyboard 0 Movement Numpad Keybinds 0 Fullscreen 2 Font 24/Smallcaps Map View 50x35 Zoom Use 0% Tactical HUD 1 Map Filters NONE Filters NONE Steam 1 RUN: ff27af3a-a0f4-4af9-959e-8a962a25a049